fUSD/lending_fUSD_20240116
["ID","MTS","AMOUNT","RATE_DAILY","PERIOD"]
[311755169,1705378251615,-500.0,0.00022432,2]
[311755170,1705378251625,-500.0,0.00022432,2]
[311755171,1705378251634,-585.27,0.00022432,2]
[311755172,1705378251645,-500.0,0.00022432,2]
[311755173,1705378251655,-250.0,0.00022432,2]
[311755174,1705378251665,-532.52,0.00022432,2]
[311755175,1705378251675,-500.0,0.00022432,2]
[311755176,1705378251685,-500.0,0.00022432,2]
[311755177,1705378251695,-500.0,0.00022432,2]
[311755178,1705378251705,-500.0,0.00022432,2]
[311755179,1705378251716,-500.0,0.00022432,2]
[311755180,1705378251726,-822.16,0.00022432,2]
[311755181,1705378251736,-1171.97,0.00022432,2]
[311755182,1705378251746,-500.0,0.00022432,2]
[311755183,1705378251757,-500.0,0.00022432,2]
[311755184,1705378251767,-503.32,0.00022432,2]
[311755185,1705378251777,-500.0,0.00022432,2]
[311755186,1705378251787,-500.0,0.00022432,2]
[311755187,1705378251797,-500.0,0.00022432,2]
[311755188,1705378251807,-500.0,0.00022432,2]
[311755189,1705378251817,-538.64,0.00022432,2]
[311755190,1705378251827,-500.0,0.00022432,2]
[311755191,1705378251837,-500.0,0.00022432,2]
[311755192,1705378251846,-500.0,0.00022432,2]
[311755193,1705378251857,-627.01,0.00022432,2]
[311755194,1705378251868,-529.55,0.00022432,2]
[311755195,1705378251879,-615.45,0.00022432,2]
[311755196,1705378251890,-500.0,0.00022432,2]
[311755197,1705378251899,-519.25,0.00022432,2]
[311755198,1705378251909,-680.79,0.00022432,2]
[311755199,1705378251918,-624.2,0.00022432,2]
[311755200,1705378251929,-500.0,0.00022432,2]
[311755201,1705378251938,-677.22,0.00022432,2]
[311755202,1705378251948,-586.91,0.00022432,2]
[311755203,1705378251957,-171.38714942,0.00022432,2]
[311755204,1705378251967,-500.0,0.00022432,2]
[311755205,1705378251977,-772.92,0.00022432,2]
[311755206,1705378251986,-500.0,0.00022432,2]
[311755207,1705378251996,-500.0,0.00022432,2]
[311755208,1705378252008,-966.93,0.00022432,2]
[311755209,1705378252018,-500.0,0.00022432,2]
[311755210,1705378252027,-793.42,0.00022432,2]
[311755211,1705378252037,-500.0,0.00022432,2]
[311755212,1705378252046,-500.0,0.00022432,2]
[311755213,1705378252056,-554.76,0.00022432,2]
[311755214,1705378252065,-500.0,0.00022432,2]
[311755215,1705378252075,-500.0,0.00022432,2]
[311755216,1705378252084,-539.12,0.00022432,2]
[311755217,1705378252094,-500.0,0.00022432,2]
[311755218,1705378252103,-500.0,0.00022432,2]
[311755219,1705378252112,-500.0,0.00022432,2]
[311755220,1705378252122,-500.0,0.00022432,2]
[311755221,1705378252131,-607.58,0.00022432,2]
[311755222,1705378252141,-503.16,0.00022432,2]
[311755223,1705378252150,-500.0,0.00022432,2]
[311755224,1705378252160,-500.0,0.00022432,2]
[311755225,1705378252169,-500.0,0.00022432,2]
[311755226,1705378252178,-500.0,0.00022432,2]
[311755227,1705378252188,-500.0,0.00022432,2]
[311755228,1705378252197,-552.42,0.00022432,2]
[311755229,1705378252206,-883.93,0.00022432,2]
[311755230,1705378252216,-500.0,0.00022432,2]
[311755231,1705378252225,-520.86,0.00022432,2]
[311755232,1705378252234,-500.0,0.00022432,2]
[311755233,1705378252244,-626.47,0.00022432,2]
[311755234,1705378252254,-500.0,0.00022432,2]
[311755235,1705378252263,-614.67,0.00022432,2]
[311755236,1705378252272,-500.0,0.00022432,2]
[311755237,1705378252282,-781.65,0.00022432,2]
[311755238,1705378252291,-500.0,0.00022432,2]
[311755239,1705378252301,-500.0,0.00022432,2]
[311755240,1705378252311,-500.0,0.00022432,2]
[311755241,1705378252321,-872.53,0.00022432,2]
[311755242,1705378252331,-500.0,0.00022432,2]
[311755243,1705378252340,-775.73,0.00022432,2]
[311755244,1705378252350,-500.0,0.00022432,2]
[311755245,1705378252681,-500.0,0.00022432,2]
[311755246,1705378252692,-500.0,0.00022432,2]
[311755247,1705378252703,-720.98,0.00022432,2]
[311755248,1705378252713,-500.0,0.00022432,2]
[311755249,1705378252723,-671.52,0.00022432,2]
[311755250,1705378252733,-500.0,0.00022432,2]
[311755251,1705378252744,-500.0,0.00022432,2]
[311755252,1705378252755,-500.0,0.00022432,2]
[311755253,1705378252764,-500.0,0.00022432,2]
[311755254,1705378252774,-705.72,0.00022432,2]
[311755255,1705378252784,-500.0,0.00022432,2]
[311755256,1705378252794,-1250.93,0.00022432,2]
[311755257,1705378252804,-500.0,0.00022432,2]
[311755258,1705378252814,-500.0,0.00022432,2]
[311755259,1705378252823,-500.0,0.00022432,2]
[311755260,1705378252833,-500.0,0.00022432,2]
[311755261,1705378252843,-657.68,0.00022432,2]
[311755262,1705378252852,-500.0,0.00022432,2]
[311755263,1705378252862,-622.67,0.00022432,2]
[311755264,1705378252873,-500.0,0.00022432,2]
[311755265,1705378252882,-720.95,0.00022432,2]
[311755266,1705378252892,-556.88,0.00022432,2]
[311755267,1705378252902,-500.0,0.00022432,2]
[311755268,1705378252912,-500.0,0.00022432,2]
[311755269,1705378252923,-500.0,0.00022432,2]
[311755270,1705378252932,-500.0,0.00022432,2]
[311755271,1705378252943,-1048.43,0.00022432,2]
[311755272,1705378252955,-500.0,0.00022432,2]
[311755273,1705378252966,-642.22,0.00022432,2]
[311755274,1705378252975,-500.0,0.00022432,2]
[311755275,1705378252985,-500.0,0.00022432,2]
[311755276,1705378252995,-500.0,0.00022432,2]
[311755277,1705378253006,-572.23,0.00022432,2]
[311755278,1705378253015,-1774.11,0.00022432,2]
[311755279,1705378253025,-573.86,0.00022432,2]
[311755280,1705378253034,-500.0,0.00022432,2]
[311755281,1705378253046,-500.0,0.00022432,2]
[311755282,1705378253055,-500.0,0.00022432,2]
[311755283,1705378253065,-500.0,0.00022432,2]
[311755284,1705378253074,-594.76,0.00022432,2]
[311755285,1705378253084,-500.0,0.00022432,2]
[311755286,1705378253093,-1613.39,0.00022432,2]
[311755287,1705378253104,-1605.96,0.00022432,2]
[311755288,1705378253113,-589.65,0.00022432,2]
[311755289,1705378253123,-500.0,0.00022432,2]
[311755290,1705378253133,-500.0,0.00022432,2]
[311755291,1705378253142,-500.0,0.00022432,2]
[311755292,1705378253152,-2316.19,0.00022432,2]
[311755293,1705378253162,-4285.28,0.00022432,2]
[311755294,1705378253171,-500.0,0.00022432,2]
[311755295,1705378253180,-530.59,0.00022432,2]
[311755296,1705378253190,-1216.42,0.00022432,2]
[311755297,1705378253200,-500.0,0.00022432,2]
[311755298,1705378253209,-516.95,0.00022432,2]
[311755299,1705378253219,-1967.53,0.00022432,2]
[311755300,1705378253228,-500.0,0.00022432,2]
[311755301,1705378253238,-691.21,0.00022432,2]
[311755302,1705378253247,-784.17,0.00022432,2]
[311755303,1705378253257,-782.17,0.00022432,2]
[311755304,1705378253266,-681.2,0.00022432,2]
[311755305,1705378253276,-833.11,0.00022432,2]
[311755306,1705378253286,-623.48988437,0.00022432,2]
[311755307,1705378253295,-500.0,0.00022432,2]
[311755308,1705378253306,-722.04,0.00022432,2]
[311755309,1705378253316,-893.25,0.00022432,2]
[311755310,1705378253326,-654.5,0.00022432,2]
[311755311,1705378253336,-500.0,0.00022432,2]
[311755312,1705378253347,-597.71,0.00022432,2]
[311755313,1705378253357,-1732.01,0.00022432,2]
[311755314,1705378253367,-1017.58,0.00022432,2]
[311755315,1705378253377,-387.04697729,0.00022432,2]
[311755316,1705378253386,-500.0,0.00022432,2]
[311755317,1705378253395,-1309.14,0.00022432,2]
[311755318,1705378253405,-245.5,0.00022432,2]
[311755319,1705378253415,-500.0,0.00022432,2]
[311755320,1705378253424,-500.0,0.00022432,2]
[311755321,1705378253434,-975.04,0.00022432,2]
[311755322,1705378253443,-500.0,0.00022432,2]
[311755323,1705378253453,-1058.39,0.00022432,2]
[311755324,1705378253462,-500.0,0.00022432,2]
[311755325,1705378253471,-500.0,0.00022432,5]
[311755326,1705378253483,-686.88,0.00022432,2]
[311755327,1705378253492,-866.71,0.00022432,2]
[311755328,1705378253502,-2717.14,0.00022432,2]
[311755329,1705378253511,-500.0,0.00022432,2]
[311755330,1705378253520,-741.61,0.00022432,2]
[311755331,1705378253530,-500.0,0.00022432,2]
[311755332,1705378253539,-620.87,0.00022432,2]
[311755333,1705378253549,-300.0,0.00022432,2]
[311755334,1705378253558,-1026.1,0.00022432,2]
[311755335,1705378253569,-898.95,0.00022432,2]
[311755336,1705378253578,-3030.71,0.00022432,2]
[311755337,1705378253587,-500.0,0.00022432,2]
[311755338,1705378253597,-500.0,0.00022432,2]
[311755339,1705378253607,-500.0,0.00022432,2]
[311755340,1705378253616,-810.38,0.00022432,2]
[311755341,1705378253626,-575.85449081,0.00022432,2]
[311755342,1705378253635,-715.32,0.00022432,2]
[311755343,1705378253645,-722.27,0.00022432,2]
[311755344,1705378253654,-500.0,0.00022432,2]
[311755345,1705378253664,-500.0,0.00022432,2]
[311755346,1705378253674,-660.23,0.00022432,2]
[311755347,1705378253683,-847.11,0.00022432,2]
[311755348,1705378253692,-602.62,0.00022432,2]
[311755349,1705378253702,-500.0,0.00022432,2]
[311755350,1705378253712,-648.6923115,0.00022432,2]
[311755351,1705378253721,-627.89,0.00022432,2]
[311755352,1705378253731,-1705.45,0.00022432,2]
[311755353,1705378253741,-1039.82,0.00022432,2]
[311755354,1705378253752,-2403.37,0.00022432,2]
[311755355,1705378253761,-500.0,0.00022432,2]
[311755356,1705378253770,-500.0,0.00022432,2]
[311755357,1705378253780,-570.4,0.00022432,2]
[311755358,1705378253789,-2574.76,0.00022432,2]
[311755359,1705378253798,-1746.2,0.00022432,2]
[311755360,1705378253807,-1132.73,0.00022432,2]
[311755361,1705378253817,-500.0,0.00022432,2]
[311755362,1705378253826,-500.0,0.00022432,2]
[311755363,1705378253836,-598.31,0.00022432,2]
[311755364,1705378253845,-597.14,0.00022432,2]
[311755365,1705378253855,-640.14,0.00022432,2]
[311755366,1705378253865,-1253.06,0.00022432,2]
[311755367,1705378253874,-500.0,0.00022432,2]
[311755368,1705378253883,-500.0,0.00022432,2]
[311755369,1705378253893,-942.35,0.00022432,2]
[311755370,1705378253902,-500.0,0.00022432,2]
[311755371,1705378253912,-3121.21,0.00022432,2]
[311755372,1705378253922,-631.69,0.00022432,2]
[311755373,1705378253931,-629.5,0.00022432,2]
[311755374,1705378253941,-500.0,0.00022432,2]
[311755375,1705378253951,-546.29,0.00022432,2]
[311755376,1705378253961,-602.8,0.00022432,2]
[311755377,1705378253970,-739.11,0.00022432,2]
[311755378,1705378253979,-500.0,0.00022432,2]
[311755379,1705378253989,-181.42,0.00022432,2]
[311755380,1705378253998,-500.0,0.00022432,2]
[311755381,1705378254008,-500.0,0.00022432,2]
[311755382,1705378254019,-1387.18,0.00022432,2]
[311755383,1705378254029,-1473.84,0.00022432,2]
[311755384,1705378254041,-192.04143527,0.00022432,2]
[311755385,1705378254051,-528.94,0.00022432,2]
[311755386,1705378254062,-500.0,0.00022432,2]
[311755387,1705378254072,-500.0,0.00022432,2]
[311755388,1705378254081,-854.0,0.00022432,2]
[311755389,1705378254091,-500.0,0.00022432,2]
[311755390,1705378254100,-607.84,0.00022432,2]
[311755391,1705378254110,-795.55,0.00022432,2]
[311755392,1705378254121,-693.09,0.00022432,2]
[311755393,1705378254131,-500.0,0.00022432,2]
[311755394,1705378254141,-500.0,0.00022432,2]
[311755395,1705378254151,-500.0,0.00022432,2]
[311755396,1705378254162,-500.0,0.00022432,2]
[311755397,1705378254171,-1434.28,0.00022432,2]
[311755398,1705378254181,-508.29,0.00022432,2]
[311755399,1705378254190,-500.0,0.00022432,2]
[311755400,1705378254200,-2152.5,0.00022432,2]
[311755401,1705378254210,-500.0,0.00022432,2]
[311755402,1705378254220,-500.0,0.00022432,2]
[311755403,1705378254230,-1145.58,0.00022432,2]
[311755404,1705378254240,-500.0,0.00022432,2]
[311755405,1705378254250,-646.94,0.00022432,2]
[311755406,1705378254261,-1162.73,0.00022432,2]
[311755407,1705378254270,-500.0,0.00022432,2]
[311755408,1705378254279,-500.0,0.00022432,2]
[311755409,1705378254289,-769.22,0.00022432,2]
[311755410,1705378254298,-555.51,0.00022432,2]
[311755411,1705378254307,-647.14,0.00022432,2]
[311755412,1705378254317,-1021.57,0.00022432,2]
[311755413,1705378254326,-606.44,0.00022432,2]
[311755414,1705378254336,-500.0,0.00022433,2]
[311755415,1705378254347,-500.0,0.00022433,2]
[311755416,1705378254357,-500.0,0.00022433,2]
[311755417,1705378254368,-500.0,0.00022433,2]
[311755418,1705378254377,-500.0,0.00022433,2]
[311755419,1705378254387,-500.0,0.00022433,2]
[311755420,1705378254396,-532.15,0.00022433,2]
[311755421,1705378254406,-575.17,0.00022433,2]
[311755422,1705378254416,-500.0,0.00022433,2]
[311755423,1705378254426,-500.0,0.00022433,2]
[311755424,1705378254437,-500.0,0.00022433,2]
[311755425,1705378254446,-500.0,0.00022433,2]
[311755426,1705378254457,-500.0,0.00022433,2]
[311755427,1705378254467,-500.0,0.00022433,2]
[311755428,1705378254476,-500.0,0.00022433,2]
[311755429,1705378254487,-500.0,0.00022433,2]
[311755430,1705378254497,-500.0,0.00022433,2]
[311755431,1705378254507,-500.0,0.00022433,2]
[311755432,1705378254517,-500.0,0.00022433,2]
[311755433,1705378254526,-500.0,0.00022433,2]
[311755434,1705378254537,-500.0,0.00022433,2]
[311755435,1705378254546,-744.59,0.00022433,2]
[311755436,1705378254557,-500.0,0.00022433,2]
[311755437,1705378254567,-699.75,0.00022433,2]
[311755438,1705378254577,-500.0,0.00022433,2]
[311755439,1705378254586,-591.21,0.00022433,2]
[311755440,1705378254596,-500.0,0.00022433,2]
[311755441,1705378254606,-579.24,0.00022433,2]
[311755442,1705378254615,-500.0,0.00022433,2]
[311755443,1705378254625,-500.0,0.00022433,2]
[311755444,1705378254635,-500.0,0.00022433,2]
[311755445,1705378254645,-600.03,0.00022433,2]
[311755446,1705378254655,-500.0,0.00022433,2]
[311755447,1705378254665,-500.0,0.00022433,2]
[311755448,1705378254674,-500.0,0.00022433,2]
[311755449,1705378254685,-613.57,0.00022433,2]
[311755450,1705378254695,-500.0,0.00022433,2]
[311755451,1705378254705,-641.28552639,0.00022433,2]
[311755452,1705378254715,-514.63,0.00022433,2]
[311755453,1705378254724,-1004.69,0.00022433,2]
[311755454,1705378254734,-500.0,0.00022433,2]
[311755455,1705378254743,-777.46,0.00022433,2]
[311755456,1705378254754,-500.0,0.00022433,2]
[311755457,1705378254763,-650.94,0.00022433,2]
[311755458,1705378254773,-500.0,0.00022433,2]
[311755459,1705378254783,-598.0,0.00022433,2]
[311755460,1705378254793,-500.0,0.00022433,2]
[311755461,1705378254803,-562.18,0.00022433,2]
[311755462,1705378254813,-500.0,0.00022433,2]
[311755463,1705378254823,-500.0,0.00022433,2]
[311755464,1705378254833,-500.0,0.00022433,2]
[311755465,1705378254842,-500.0,0.00022433,2]
[311755466,1705378254852,-500.0,0.00022433,2]
[311755467,1705378254861,-560.2,0.00022433,2]
[311755468,1705378254873,-502.82,0.00022433,2]
[311755469,1705378254883,-500.0,0.00022433,2]
[311755470,1705378254893,-500.0,0.00022433,2]
[311755471,1705378254902,-500.0,0.00022433,2]
[311755472,1705378254913,-501.54,0.00022433,2]
[311755473,1705378254923,-1021.7,0.00022433,2]
[311755474,1705378254932,-529.71,0.00022433,2]
[311755475,1705378254942,-500.0,0.00022433,2]
[311755476,1705378254953,-832.52,0.00022433,2]
[311755477,1705378254964,-500.0,0.00022433,2]
[311755478,1705378254974,-527.53,0.00022433,2]
[311755479,1705378254983,-500.0,0.00022433,2]
[311755480,1705378254993,-500.0,0.00022433,2]
[311755481,1705378255004,-500.0,0.00022433,2]
[311755482,1705378255013,-500.0,0.00022433,2]
[311755483,1705378255023,-500.0,0.00022433,2]
[311755484,1705378255033,-1083.52,0.00022433,2]
[311755485,1705378255043,-500.0,0.00022433,2]
[311755486,1705378255053,-500.0,0.00022433,2]
[311755487,1705378255066,-1094.17,0.00022433,2]
[311755488,1705378255075,-768.86,0.00022433,2]
[311755489,1705378255085,-500.0,0.00022433,2]
[311755490,1705378255094,-500.0,0.00022433,2]
[311755491,1705378255104,-512.41,0.00022433,2]
[311755492,1705378255113,-827.48,0.00022433,2]
[311755493,1705378255123,-676.55,0.00022433,2]
[311755494,1705378255133,-166.00181629,0.00022433,2]
[311755495,1705378255143,-500.0,0.00022433,2]
[311755496,1705378255158,-609.19,0.00022433,2]
[311755497,1705378255170,-614.6,0.00022433,2]
[311755498,1705378255180,-619.2,0.00022433,2]
[311755499,1705378255189,-738.17,0.00022433,2]
[311755500,1705378255198,-500.0,0.00022433,2]
[311755501,1705378255208,-884.85,0.00022433,2]
[311755502,1705378255217,-500.0,0.00022433,2]
[311755503,1705378255227,-500.0,0.00022433,2]
[311755504,1705378255236,-531.46,0.00022433,2]
[311755505,1705378255246,-500.0,0.00022433,2]
[311755506,1705378255256,-500.0,0.00022433,2]
[311755507,1705378255265,-955.88,0.00022433,2]
[311755508,1705378255275,-500.0,0.00022433,2]
[311755509,1705378255286,-500.0,0.00022433,2]
[311755510,1705378255296,-621.19,0.00022433,2]
[311755511,1705378255306,-991.97,0.00022433,2]
[311755512,1705378255317,-500.0,0.00022433,2]
[311755513,1705378255328,-500.0,0.00022433,2]
[311755514,1705378255338,-564.79,0.00022433,2]
[311755515,1705378255348,-507.62,0.00022433,2]
[311755516,1705378255358,-500.0,0.00022433,2]
[311755517,1705378255368,-549.65,0.00022433,2]
[311755518,1705378255378,-935.14,0.00022433,2]
[311755519,1705378255388,-1085.61,0.00022433,2]
[311755520,1705378255398,-500.0,0.00022433,2]
[311755521,1705378255409,-599.1,0.00022433,2]
[311755522,1705378255419,-666.01,0.00022433,2]
[311755523,1705378255429,-592.73,0.00022433,2]
[311755524,1705378255439,-604.09,0.00022433,2]
[311755525,1705378255448,-621.82,0.00022433,2]
[311755526,1705378255458,-500.0,0.00022433,2]
[311755527,1705378255468,-790.79,0.00022433,2]
[311755528,1705378255477,-743.23,0.00022433,2]
[311755529,1705378255487,-945.33,0.00022433,2]
[311755530,1705378255496,-500.0,0.00022433,2]
[311755531,1705378255506,-703.31,0.00022433,2]
[311755532,1705378255515,-500.0,0.00022433,2]
[311755533,1705378255525,-606.03,0.00022433,2]
[311755534,1705378255534,-1519.81,0.00022433,2]
[311755535,1705378255543,-500.0,0.00022433,2]
[311755536,1705378255553,-651.24,0.00022433,2]
[311755537,1705378255562,-1081.4,0.00022433,2]
[311755538,1705378255571,-866.46,0.00022433,2]
[311755539,1705378255580,-1066.26,0.00022433,2]
[311755540,1705378255590,-918.86,0.00022433,2]
[311755541,1705378255599,-689.27,0.00022433,2]
[311755542,1705378255609,-2692.26,0.00022433,2]
[311755543,1705378255618,-1064.88,0.00022433,2]
[311755544,1705378255627,-731.44,0.00022433,2]
[311755545,1705378255636,-2542.67,0.00022433,2]
[311755546,1705378255646,-500.0,0.00022433,2]
[311755547,1705378255656,-922.64,0.00022433,2]
[311755548,1705378255665,-843.79,0.00022433,2]
[311755549,1705378255675,-609.44,0.00022433,2]
[311755550,1705378255685,-549.79,0.00022433,2]
[311755551,1705378255694,-602.2,0.00022433,2]
[311755552,1705378255704,-942.58,0.00022433,2]
[311755553,1705378255713,-1000.84,0.00022433,2]
[311755554,1705378255722,-831.08,0.00022433,2]
[311755555,1705378255732,-723.1,0.00022437,2]
[311755556,1705378255741,-153.23,0.00022438,2]
[311755557,1705378255751,-7610.60250711,0.00022464,2]
[311755558,1705378255765,-209.47092616,0.00022474,6]
[311755559,1705378255779,-151.01,0.00022481,2]
[311755560,1705378255793,-12294.16339703,0.000225,2]
[311755561,1705378255804,-1000.0,0.000225,2]
[311755562,1705378255816,-1880.89,0.000225,2]
[311755563,1705378255832,-215.17,0.000225,2]
[311755564,1705378255845,-294.22,0.000225,2]
[311755565,1705378255860,-418.24,0.000225,2]
[311755566,1705378255873,-628.8,0.000225,2]
[311755567,1705378255890,-1901.641039,0.000225,2]
[311755568,1705378255906,-418.24,0.000225,2]
[311755569,1705378255917,-294.22,0.000225,2]
[311755570,1705378255931,-889.61,0.000225,2]
[311755571,1705378255945,-1915.71,0.000225,2]
[311755572,1705378255959,-470.61,0.000225,2]
[311755573,1705378255973,-227.09,0.000225,2]
[311755574,1705378255986,-294.22,0.000225,2]
[311755575,1705378256002,-418.24,0.000225,2]
[311755576,1705378256014,-272.32,0.000225,2]
[311755577,1705378256026,-418.24,0.000225,2]
[311755578,1705378256041,-7610.60250711,0.00022518,2]
[311755579,1705378256055,-222.53370849,0.00022539,2]
[311755580,1705378256070,-200.0,0.0002254,2]
[311755581,1705378256082,-800.0,0.0002254,2]
[311755582,1705378256095,-153.23,0.00022572,2]
[311755583,1705378256108,-7610.60250711,0.00022573,2]
[311755584,1705378256122,-1178.0,0.00022579,2]
[311755585,1705378256136,-209.47092616,0.00022616,6]
[311755586,1705378256150,-7610.60250711,0.00022627,2]
[311755587,1705378256165,-151.01,0.00022634,2]
[311755588,1705378256180,-222.53370849,0.00022659,2]
[311755589,1705378256195,-500.0,0.00022676,2]
[311755590,1705378256207,-200.0,0.00022676,2]
[311755591,1705378256219,-7999.99,0.00022677,3]
[311755592,1705378256230,-800.0,0.00022678,2]
[311755593,1705378256243,-7610.60250711,0.00022682,2]
[311755594,1705378256256,-33610.0,0.000227,2]
[311755595,1705378256268,-339.0,0.000227,2]
[311755596,1705378256283,-757.12,0.00022704,2]
[311755597,1705378256297,-1725.93,0.00022704,2]
[311755598,1705378256308,-500.0,0.00022704,2]
[311755599,1705378256320,-1331.22,0.00022704,2]
[311755600,1705378256332,-2570.87,0.00022704,2]
[311755601,1705378256344,-819.76,0.00022704,2]
[311755602,1705378256355,-500.0,0.00022704,2]
[311755603,1705378256368,-500.0,0.00022704,2]
[311755604,1705378256380,-949.27,0.00022704,2]
[311755605,1705378256392,-880.5,0.00022704,2]
[311755606,1705378256404,-2283.86,0.00022704,2]
[311755607,1705378256417,-534.79,0.00022704,2]
[311755608,1705378256430,-1047.04,0.00022704,2]
[311755609,1705378256444,-10681.3,0.00022704,2]
[311755610,1705378256456,-1080.02,0.00022704,2]
[311755611,1705378256469,-901.65,0.00022704,2]
[311755612,1705378256482,-1248.71,0.00022704,2]
[311755613,1705378256493,-950.49,0.00022704,2]
[311755614,1705378256506,-1675.14,0.00022704,2]
[311755615,1705378256517,-500.0,0.00022704,2]
[311755616,1705378256529,-2489.67,0.00022704,2]
[311755617,1705378256541,-770.27,0.00022704,2]
[311755618,1705378256554,-500.0,0.00022704,2]
[311755619,1705378256567,-1204.43,0.00022704,2]
[311755620,1705378256578,-500.0,0.00022704,2]
[311755621,1705378256591,-566.68,0.00022704,2]
[311755622,1705378256602,-500.0,0.00022704,2]
[311755623,1705378256614,-500.0,0.00022704,2]
[311755624,1705378256626,-821.86,0.00022704,2]
[311755625,1705378256638,-151.0,0.00022705,7]
[311755626,1705378256649,-151.0,0.00022705,7]
[311755627,1705378256660,-151.0,0.00022705,7]
[311755628,1705378256675,-151.0,0.00022705,7]
[311755629,1705378256687,-257.733119,0.00022705,7]
[311755630,1705378256698,-151.0,0.00022705,7]
[311755631,1705378256709,-197.876651,0.00022705,7]
[311755632,1705378256720,-181.665169,0.00022705,2]
[311755633,1705378256732,-181.665169,0.00022705,2]
[311755634,1705378256744,-151.0,0.00022705,7]
[311755635,1705378256757,-151.0,0.00022705,7]
[311755636,1705378256769,-151.0,0.00022705,7]
[311755637,1705378256781,-151.0,0.00022705,7]
[311755638,1705378256793,-151.0,0.00022705,7]
[311755639,1705378256806,-151.0,0.00022705,7]
[311755640,1705378256818,-151.0,0.00022705,7]
[311755641,1705378256831,-151.0,0.00022705,7]
[311755642,1705378256845,-500.0,0.00022705,2]
[311755643,1705378256858,-500.0,0.00022705,2]
[311755644,1705378256871,-500.0,0.00022705,2]
[311755645,1705378256887,-500.0,0.00022705,2]
[311755646,1705378256899,-363.65606664,0.00022705,2]
[311755647,1705378256912,-541.5,0.00022705,2]
[311755648,1705378256926,-500.0,0.00022705,2]
[311755649,1705378256939,-500.0,0.00022705,2]
[311755650,1705378256951,-628.08,0.00022705,2]
[311755651,1705378256965,-500.0,0.00022705,2]
[311755652,1705378256976,-171.59797576,0.00022705,2]
[311755653,1705378256989,-500.0,0.00022705,2]
[311755654,1705378257002,-509.18,0.00022705,2]
[311755655,1705378257013,-500.0,0.00022705,2]
[311755656,1705378257026,-500.0,0.00022705,2]
[311755657,1705378257038,-500.0,0.00022705,2]
[311755658,1705378257050,-500.0,0.00022705,2]
[311755659,1705378257068,-500.0,0.00022705,2]
[311755660,1705378257079,-783.19,0.00022705,2]
[311755661,1705378257091,-500.0,0.00022705,2]
[311755662,1705378257102,-500.0,0.00022705,2]
[311755663,1705378257112,-666.44,0.00022705,2]
[311755664,1705378257124,-500.0,0.00022705,2]
[311755665,1705378257136,-795.08,0.00022705,2]
[311755666,1705378257148,-621.13,0.00022705,2]
[311755667,1705378257159,-500.0,0.00022705,2]
[311755668,1705378257170,-500.0,0.00022705,2]